bitfinex-derivatives/quotes_BTCF0:USTF0_20241227
["timestamp","ask_amount","ask_price","bid_price","bid_amount"]
[1735311728166,0.052449,95449.0,95437.0,0.052456]
[1735311728375,0.001,95455.0,95450.0,0.052448]
[1735311728560,0.0754,95462.0,95450.0,0.052448]
[1735311728756,0.052444,95458.0,95450.0,0.052448]
[1735311728963,0.052445,95457.0,95450.0,0.052448]
[1735311729465,0.052447,95454.0,95441.0,0.052453]
[1735311729672,0.15752109,95460.0,95431.0,0.052459]
[1735311729970,0.052458,95433.0,95421.0,0.054464]
[1735311730171,0.05245,95448.0,95422.0,0.002]
[1735311730471,0.05246,95429.0,95422.0,0.002]
[1735311730662,0.15752109,95450.0,95422.0,0.002]
[1735311730663,0.052461,95428.0,95422.0,0.002]
[1735311730976,0.052468,95414.0,95403.0,0.18606211]
[1735311731160,0.15752109,95423.0,95403.0,0.18606211]
[1735311731563,0.052474,95405.0,95403.0,0.18606211]
[1735311732267,0.052474,95405.0,95380.0,0.15752109]
[1735311732268,0.052474,95405.0,95390.0,0.15752109]
[1735311732669,0.1446,95427.0,95390.0,0.45752109]
[1735311732873,0.0726,95427.0,95416.0,0.052467]
[1735311733074,0.05246,95430.0,95410.0,0.15752109]
[1735311733280,0.001,95423.0,95404.0,0.052474]
[1735311733471,0.001,95423.0,95402.0,0.052475]
[1735311733774,0.001,95423.0,95400.0,0.15752109]
[1735311733972,0.001,95427.0,95400.0,0.15752109]
[1735311734173,0.001,95427.0,95400.0,0.54421804]
[1735311734468,0.001,95423.0,95417.0,0.052466]
[1735311734775,0.001,95423.0,95422.0,0.052464]
[1735311735072,0.0714,95459.0,95429.0,0.05246]
[1735311735275,0.374,95449.0,95400.0,0.24521804]
[1735311735473,0.052456,95436.0,95405.0,0.052473]
[1735311735772,0.24421804,95440.0,95408.0,0.052471]
[1735311735978,0.052467,95417.0,95408.0,0.052471]
[1735311736874,0.05247,95412.0,95399.0,0.052476]
[1735311737175,0.05247,95412.0,95391.0,0.08597613]
[1735311737873,0.05247,95412.0,95393.0,0.05248]
[1735311738075,0.05247,95412.0,95391.0,0.08597613]
[1735311738279,0.002,95417.0,95400.0,0.24421804]
[1735311738481,0.08477549,95449.0,95415.0,0.052467]
[1735311738774,0.24421804,95440.0,95391.0,0.08797613]
[1735311738976,0.05246,95430.0,95417.0,0.052467]
[1735311739181,0.15406811,95454.0,95402.0,0.06]
[1735311739479,0.15406811,95454.0,95440.0,0.24421804]
[1735311739667,0.15406811,95454.0,95420.0,0.00157182]
[1735311739870,0.24421804,95460.0,95420.0,0.00157182]
[1735311740084,0.052448,95451.0,95438.0,0.052455]
[1735311740281,0.24421804,95460.0,95420.0,0.00157182]
[1735311740479,0.052453,95442.0,95420.0,0.00157182]
[1735311740676,0.052457,95435.0,95420.0,0.00157182]
[1735311740877,0.052457,95435.0,95424.0,0.052463]
[1735311741073,0.052458,95433.0,95424.0,0.052463]
[1735311741481,0.24421804,95440.0,95420.0,0.00257182]
[1735311741681,0.052464,95423.0,95420.0,0.00257182]
[1735311741874,0.24421804,95440.0,95420.0,0.00257182]
[1735311741875,0.052464,95422.0,95420.0,0.00257182]
[1735311742076,0.052468,95415.0,95399.0,0.052476]
[1735311742273,0.052458,95432.0,95400.0,0.24421804]
[1735311742577,0.05246,95430.0,95410.0,0.24421804]
[1735311742780,0.052461,95428.0,95420.0,0.001]
[1735311742982,0.0684,95449.0,95420.0,0.001]
[1735311743184,0.052451,95446.0,95420.0,0.301]
[1735311743377,0.052451,95446.0,95440.0,0.052454]
[1735311743686,0.0684,95449.0,95440.0,0.052454]
[1735311744182,0.120849,95449.0,95440.0,0.052454]
[1735311744374,0.05245,95448.0,95440.0,0.052454]
[1735311744678,0.052453,95441.0,95440.0,0.002]
[1735311745076,0.003,95446.0,95440.0,0.002]
[1735311745387,0.003,95446.0,95440.0,0.001]
[1735311746084,0.052451,95447.0,95440.0,0.053454]
[1735311746281,0.0684,95449.0,95440.0,0.006]
[1735311746579,0.15406811,95467.0,95440.0,0.006]
[1735311746780,0.15406811,95467.0,95440.0,0.54621804]
[1735311746973,0.15406811,95467.0,95440.0,0.302]
[1735311747173,0.004,95446.0,95440.0,0.001]
[1735311747582,0.004,95446.0,95440.0,0.301]
[1735311747785,0.15406811,95467.0,95440.0,0.301]
[1735311747982,0.15806811,95467.0,95440.0,0.301]
[1735311748286,0.004,95467.0,95449.0,0.052449]
[1735311748581,0.004,95467.0,95440.0,0.001]
[1735311748582,0.05244,95466.0,95440.0,0.001]
[1735311748887,0.01534,95468.0,95466.0,0.05244]
[1735311749574,0.001,95467.0,95466.0,0.05244]
[1735311750178,0.02334,95468.0,95466.0,0.001]
[1735311750375,0.02334,95468.0,95466.0,0.053439]
[1735311750783,0.002,95467.0,95466.0,0.053439]
[1735311750979,0.007,95467.0,95466.0,0.001]
[1735311751287,0.005,95467.0,95450.0,0.052448]
[1735311751475,0.052443,95460.0,95451.0,0.052448]
[1735311751676,0.052441,95464.0,95436.0,0.23851811]
[1735311751983,0.052458,95434.0,95432.0,0.18606211]
[1735311754088,0.052459,95432.0,95422.0,0.36275351]
[1735311754394,0.05246,95430.0,95422.0,0.053064]
[1735311754691,0.05246,95430.0,95406.0,0.18606211]
[1735311754692,0.001,95434.0,95430.0,0.052459]
[1735311755076,0.0756,95449.0,95422.0,0.052464]
[1735311755292,0.055457,95434.0,95425.0,0.052462]
[1735311755494,0.055457,95434.0,95427.0,0.052461]
[1735311755990,0.056457,95434.0,95427.0,0.052461]
[1735311756296,0.052461,95428.0,95419.0,0.052465]
[1735311756591,0.052461,95428.0,95427.0,0.001]
[1735311756984,0.052461,95428.0,95410.0,0.05247]
[1735311757390,0.052466,95419.0,95410.0,0.05247]
[1735311757690,0.052466,95419.0,95402.0,0.18606211]
[1735311757886,0.052466,95419.0,95410.0,0.05247]
[1735311758191,0.052466,95419.0,95390.0,0.48606211]
[1735311758388,0.052466,95419.0,95414.0,0.052468]
[1735311758584,0.053466,95419.0,95414.0,0.052468]
[1735311759479,0.001,95419.0,95414.0,0.052468]
[1735311759684,0.052467,95418.0,95414.0,0.052468]
[1735311759890,0.002,95419.0,95406.0,0.052472]
[1735311760195,0.052476,95401.0,95392.0,0.05248]
[1735311760493,0.052476,95401.0,95390.0,0.003]
[1735311760494,0.24421804,95410.0,95390.0,0.003]
[1735311760679,0.1487,95418.0,95390.0,0.003]
[1735311760883,0.25350807,95418.0,95385.0,0.18606211]
[1735311761089,0.11088052,95417.0,95385.0,0.18606211]
[1735311761395,0.51570067,95417.0,95385.0,0.18606211]
[1735311762185,0.052471,95409.0,95366.0,0.00056]
[1735311762488,0.052471,95409.0,95358.0,0.052499]
[1735311762790,0.052472,95407.0,95385.0,0.001]
[1735311762988,0.053831,95409.0,95385.0,0.001]
[1735311763189,0.052472,95408.0,95357.0,0.052499]
[1735311763386,0.3,95409.0,95366.0,0.009]
[1735311763387,0.1048207,95406.0,95366.0,0.009]
[1735311763586,0.05105321,95406.0,95366.0,0.009]
[1735311763796,0.10482619,95405.0,95366.0,0.009]
[1735311763989,0.10482619,95405.0,95385.0,0.001]
[1735311764293,0.052476,95401.0,95385.0,0.002]
[1735311764501,0.30136,95405.0,95385.0,0.002]
[1735311764792,0.3,95405.0,95385.0,0.002]
[1735311765091,0.301,95405.0,95385.0,0.001]
[1735311765491,0.301,95405.0,95362.0,0.052496]
[1735311766403,0.009,95405.0,95385.0,0.001]
[1735311766586,0.052474,95403.0,95385.0,0.001]
[1735311766796,0.009,95405.0,95385.0,0.001]
[1735311767091,0.201166,95418.0,95385.0,0.052484]
[1735311767288,0.004,95405.0,95385.0,0.052484]
[1735311767794,0.004,95405.0,95362.0,0.002]
[1735311767992,0.01098608,95410.0,95364.0,0.052495]
[1735311768188,0.001,95405.0,95364.0,0.052495]
[1735311768394,0.001,95405.0,95384.0,0.052485]
[1735311768595,0.001,95405.0,95364.0,0.052495]
[1735311768596,0.008,95403.0,95387.0,0.052483]
[1735311768995,0.008,95403.0,95385.0,0.001]
[1735311769203,0.008,95403.0,95391.0,0.052481]
[1735311769599,0.052468,95416.0,95391.0,0.052481]
[1735311769793,0.052476,95401.0,95391.0,0.052481]
[1735311770002,0.052478,95397.0,95391.0,0.052481]
[1735311770196,0.001,95410.0,95391.0,0.052481]
[1735311770501,0.052479,95395.0,95391.0,0.053481]
[1735311771094,0.05248,95393.0,95391.0,0.001]
[1735311771489,0.008,95403.0,95391.0,0.001]
[1735311771802,0.0733,95418.0,95386.0,0.075]
[1735311771995,0.004,95401.0,95391.0,0.05248]
[1735311772199,0.004,95401.0,95399.0,0.052476]
[1735311772399,0.052459,95431.0,95387.0,0.052483]
[1735311772601,0.052459,95431.0,95391.0,0.001]
[1735311772800,0.052459,95431.0,95412.0,0.052469]
[1735311773001,0.052459,95431.0,95413.0,0.052468]
[1735311773198,0.35400001,95436.0,95415.0,0.052467]
[1735311773408,0.052458,95433.0,95415.0,0.052467]
[1735311773609,0.6526,95436.0,95407.0,0.052472]
[1735311773610,0.052458,95434.0,95407.0,0.052472]
[1735311773917,0.66464129,95436.0,95395.0,0.052478]
[1735311773918,0.01204129,95436.0,95395.0,0.052478]
[1735311774098,0.01068129,95436.0,95391.0,0.003]
[1735311774299,0.0154,95458.0,95412.0,0.052469]
[1735311774500,0.052448,95452.0,95433.0,0.052457]
[1735311774706,0.002,95433.0,95432.0,0.052458]
[1735311775099,0.01084584,95458.0,95413.0,0.1496]
[1735311775305,0.01534,95468.0,95466.0,0.052439]
[1735311775500,0.01534,95468.0,95426.0,0.052461]
[1735311775501,0.01534,95468.0,95458.0,0.052443]
[1735311775701,0.01534,95468.0,95426.0,0.3]
[1735311775908,0.21613438,95486.0,95467.0,0.052439]
[1735311776106,0.052419,95504.0,95456.0,0.052445]
[1735311776413,0.05242,95503.0,95487.0,0.052428]
[1735311776607,0.05242,95503.0,95460.0,0.052443]
[1735311776608,0.11081035,95500.0,95453.0,0.1426]
[1735311776815,0.11081035,95500.0,95492.0,0.052425]
[1735311777014,0.009,95486.0,95483.0,0.05243]
[1735311777308,0.009,95486.0,95467.0,0.001]
[1735311777707,0.052433,95479.0,95464.0,0.05244]
[1735311777900,0.00140001,95486.0,95453.0,0.1426]
[1735311778103,0.052422,95498.0,95457.0,0.052444]
[1735311778306,0.3,95498.0,95476.0,0.052434]
[1735311778608,0.052427,95490.0,95476.0,0.052434]
[1735311779408,0.004,95486.0,95476.0,0.001]
[1735311779617,0.004,95486.0,95483.0,0.05243]
[1735311780124,0.007,95490.0,95483.0,0.05243]
[1735311780318,0.007,95490.0,95476.0,0.002]
[1735311780319,0.059427,95490.0,95476.0,0.002]
[1735311780519,0.059427,95490.0,95478.0,0.052433]
[1735311780813,0.059427,95490.0,95476.0,0.002]
[1735311780814,0.052427,95489.0,95476.0,0.001]
[1735311781016,0.052432,95481.0,95476.0,0.001]
[1735311781617,0.001,95486.0,95454.0,0.0711]
[1735311782015,0.001,95486.0,95479.0,0.052432]
[1735311782520,0.052428,95488.0,95479.0,0.052432]
[1735311782821,0.052429,95487.0,95479.0,0.052432]
[1735311783126,0.01294964,95490.0,95454.0,0.0711]
[1735311783419,0.001,95486.0,95454.0,0.3711]
[1735311783622,0.001,95486.0,95484.0,0.052429]
[1735311784018,0.1,95500.0,95454.0,0.0711]
[1735311784220,0.12354128,95517.0,95455.0,0.06]
[1735311784425,0.12210128,95517.0,95516.0,0.052412]
[1735311784625,0.12210128,95517.0,95479.0,0.052432]
[1735311784925,0.12210128,95517.0,95515.0,0.052412]
[1735311785113,0.18321091,95531.0,95470.0,0.06]
[1735311785310,0.18321091,95531.0,95520.0,0.05241]
[1735311785515,0.18321091,95569.0,95530.0,0.052405]
[1735311785820,0.18321091,95569.0,95492.0,0.35236]
[1735311785821,0.052387,95562.0,95495.0,0.06]
[1735311786123,0.18321091,95569.0,95566.0,0.052385]
[1735311786319,0.18321091,95569.0,95552.0,0.052392]
[1735311786516,0.052385,95565.0,95552.0,0.052392]
[1735311786822,0.006,95562.0,95532.0,0.00156998]
[1735311787022,0.052393,95552.0,95530.0,0.001]
[1735311787418,0.052393,95552.0,95531.0,0.0709]
[1735311787921,0.006,95569.0,95531.0,0.0709]
[1735311788126,0.052404,95531.0,95530.0,0.001]
[1735311788622,0.052411,95518.0,95511.0,0.00157026]
[1735311788817,0.052414,95513.0,95511.0,0.00157026]
[1735311789211,0.003,95552.0,95499.0,0.074]
[1735311789415,0.052425,95492.0,95481.0,0.0759]
[1735311790125,0.01077472,95520.0,95484.0,0.05243]
[1735311790421,0.052424,95495.0,95484.0,0.05243]
[1735311791022,0.052413,95515.0,95498.0,0.052422]
[1735311791319,0.052413,95515.0,95481.0,0.0759]
[1735311791320,0.052413,95515.0,95511.0,0.002]
[1735311791520,0.052396,95545.0,95511.0,0.002]
[1735311791521,0.052408,95523.0,95511.0,0.002]
[1735311791722,0.3,95545.0,95511.0,0.002]
[1735311791923,0.052414,95513.0,95501.0,0.05242]
[1735311792523,0.001,95515.0,95511.0,0.009]
[1735311793229,0.001,95515.0,95513.0,0.052413]
[1735311793739,0.002,95515.0,95513.0,0.052413]
[1735311794125,0.00209312,95551.0,95513.0,0.3]
[1735311794426,0.052401,95537.0,95528.0,0.052406]
[1735311794624,0.00209312,95551.0,95502.0,0.0727]
[1735311794929,0.052409,95522.0,95512.0,0.052414]
[1735311795131,0.052411,95518.0,95512.0,0.052414]
[1735311795426,0.31286661,95551.0,95513.0,0.013]
[1735311795614,0.052413,95514.0,95513.0,0.013]
[1735311796121,0.052413,95514.0,95513.0,0.009]
[1735311797031,0.004,95514.0,95476.0,0.0727]
[1735311797229,0.052417,95508.0,95485.0,0.0723]
[1735311797526,0.052417,95508.0,95495.0,0.052423]
[1735311797722,0.006,95514.0,95495.0,0.052423]
[1735311797924,0.052419,95505.0,95485.0,0.0723]
[1735311798114,0.004,95514.0,95485.0,0.0723]
[1735311798315,0.004,95514.0,95485.0,0.3723]
[1735311798529,0.004,95514.0,95498.0,0.052422]
[1735311798530,0.052415,95511.0,95498.0,0.052422]
[1735311798827,0.002,95514.0,95498.0,0.052422]
[1735311799030,0.052416,95509.0,95503.0,0.052419]
[1735311799525,0.002,95514.0,95513.0,0.052414]
[1735311799829,0.052407,95526.0,95518.0,0.052411]
[1735311800127,0.052384,95568.0,95498.0,0.052422]
[1735311800324,0.052397,95545.0,95512.0,0.052414]
[1735311800526,0.052415,95512.0,95503.0,0.052419]
[1735311800826,0.052394,95549.0,95485.0,0.0793]
[1735311800827,0.052429,95486.0,95485.0,0.0793]
[1735311801028,0.052429,95486.0,95485.0,0.007]
[1735311801218,0.052425,95493.0,95485.0,0.007]
[1735311801529,0.3,95513.0,95485.0,0.002]
[1735311802027,0.052422,95498.0,95486.0,0.052428]
[1735311802332,0.0695,95519.0,95485.0,0.004]
[1735311802516,0.003,95514.0,95485.0,0.004]
[1735311803223,0.0695,95519.0,95486.0,0.001]
[1735311803429,0.3695,95519.0,95490.0,0.052426]
[1735311803728,0.3695,95519.0,95486.0,0.001]
[1735311803939,0.052413,95515.0,95484.0,0.00157077]
[1735311804233,0.3695,95519.0,95485.0,0.003]
[1735311804430,0.10471259,95514.0,95486.0,0.006]
[1735311804631,0.052414,95513.0,95486.0,0.006]
[1735311804827,0.052414,95513.0,95485.0,0.003]
[1735311804828,0.05450795,95513.0,95485.0,0.003]
[1735311805017,0.00209397,95512.0,95486.0,0.005]
[1735311805217,0.052418,95506.0,95486.0,0.005]
[1735311805535,0.052419,95504.0,95486.0,0.005]
[1735311806027,0.10471313,95503.0,95486.0,0.005]
[1735311806226,0.00209419,95502.0,95486.0,0.006]
[1735311806631,0.30209419,95502.0,95486.0,0.006]
[1735311806832,0.30209419,95502.0,95486.0,0.005]
[1735311807221,0.30209419,95502.0,95450.0,0.052448]
[1735311807426,0.30209419,95502.0,95486.0,0.006]
[1735311807820,0.10471862,95501.0,95486.0,0.007]
[1735311808030,0.10471862,95501.0,95486.0,0.004]
[1735311808222,0.052419,95504.0,95486.0,0.004]
[1735311808428,0.01046177,95505.0,95486.0,0.004]
[1735311808622,0.15161409,95507.0,95486.0,0.004]
[1735311808623,0.052418,95506.0,95486.0,0.004]
[1735311809024,0.002,95501.0,95486.0,0.002]
[1735311809220,0.007,95501.0,95486.0,0.001]
[1735311809429,0.059421,95501.0,95486.0,0.001]
[1735311809733,0.007,95501.0,95487.0,0.0766]
[1735311809936,0.002,95501.0,95491.0,0.052426]
[1735311810230,0.002,95501.0,95486.0,0.001]
[1735311810535,0.302,95501.0,95486.0,0.001]
[1735311811127,0.31276549,95501.0,95486.0,0.001]
[1735311811329,0.31076549,95501.0,95486.0,0.002]
[1735311811835,0.31076549,95501.0,95461.0,0.18606211]
[1735311812026,0.31276549,95501.0,95447.0,0.05245]
[1735311812524,0.31376549,95501.0,95447.0,0.05245]
[1735311812727,0.052444,95459.0,95452.0,0.31411982]
[1735311813327,0.15161409,95497.0,95467.0,0.052439]
[1735311813529,0.15161409,95497.0,95479.0,0.31411982]
[1735311813725,0.052424,95495.0,95469.0,0.31411982]
[1735311814037,0.10476085,95496.0,95462.0,0.31411982]
[1735311814231,0.052441,95464.0,95454.0,0.052446]
[1735311814432,0.052443,95461.0,95455.0,0.31411982]
[1735311814637,0.3108997,95497.0,95455.0,0.31411982]
[1735311814831,0.00209432,95496.0,95439.0,0.128654]
[1735311815034,0.052438,95469.0,95439.0,0.0762]
[1735311815230,0.052447,95453.0,95450.0,0.31411982]
[1735311815534,0.052441,95463.0,95458.0,0.31411982]
[1735311815735,0.052441,95464.0,95463.0,0.31411982]
[1735311816937,0.052445,95456.0,95439.0,0.0842]
[1735311817124,0.05244,95466.0,95449.0,0.31411982]
[1735311817322,0.05244,95466.0,95439.0,0.0842]
[1735311817323,0.052439,95468.0,95450.0,0.31411982]
[1735311817533,0.004,95464.0,95451.0,0.31411982]
[1735311817739,0.052447,95452.0,95451.0,0.31411982]
[1735311817926,0.004,95464.0,95439.0,0.0762]
[1735311817927,0.052442,95463.0,95439.0,0.0762]
[1735311818124,0.052442,95463.0,95439.0,0.0842]
[1735311818339,0.3,95463.0,95442.0,0.31411982]
[1735311818534,0.052442,95461.0,95439.0,0.0842]
[1735311818746,0.052447,95452.0,95451.0,0.003]
[1735311819123,0.01068433,95469.0,95451.0,0.31711982]
[1735311819441,0.052442,95462.0,95451.0,0.003]
[1735311819739,0.052437,95472.0,95466.0,0.31411982]
[1735311819942,0.052443,95460.0,95459.0,0.31411982]
[1735311820129,0.052432,95481.0,95460.0,0.31411982]
[1735311820333,0.052431,95482.0,95461.0,0.31411982]
[1735311820530,0.052432,95480.0,95459.0,0.31411982]
[1735311820732,0.052442,95461.0,95459.0,0.31411982]
[1735311823134,0.052442,95462.0,95459.0,0.001]
[1735311823437,0.053442,95461.0,95459.0,0.001]
[1735311823739,0.00136,95486.0,95460.0,0.31411982]
[1735311823927,0.052436,95472.0,95471.0,0.31411982]
[1735311824133,0.24417139,95480.0,95475.0,0.31411982]
[1735311824438,0.15161409,95489.0,95479.0,0.31411982]
[1735311824629,0.052428,95488.0,95461.0,0.0704]
[1735311824834,0.052433,95478.0,95477.0,0.31411982]
[1735311825030,0.052428,95487.0,95461.0,0.122842]
[1735311825244,0.052428,95488.0,95461.0,0.122842]
[1735311825551,0.052433,95478.0,95477.0,0.31411982]
[1735311826043,0.052433,95478.0,95461.0,0.0704]
[1735311826242,0.052434,95477.0,95476.0,0.31411982]
[1735311826831,0.052441,95463.0,95462.0,0.0759]
[1735311827042,0.052441,95463.0,95461.0,0.0714]
[1735311827229,0.052441,95463.0,95461.0,0.0704]
[1735311827944,0.052441,95463.0,95462.0,0.001]
[1735311828444,0.052441,95463.0,95462.0,0.31511982]
[1735311829148,0.15161409,95476.0,95462.0,0.31511982]
[1735311829344,0.20404809,95476.0,95475.0,0.31411982]
[1735311829732,0.052435,95475.0,95445.0,0.052451]
[1735311829929,0.052435,95475.0,95440.0,0.0754]
[1735311829930,0.052437,95471.0,95470.0,0.31411982]
[1735311830844,0.052437,95471.0,95462.0,0.31411982]
[1735311831147,0.24417139,95470.0,95441.0,0.0764]
[1735311831348,0.052444,95459.0,95441.0,0.0764]
[1735311831642,0.052446,95455.0,95430.0,0.18606211]
[1735311831848,0.052447,95453.0,95430.0,0.18606211]
[1735311832040,0.052445,95456.0,95426.0,0.0704]
[1735311832438,0.052445,95456.0,95431.0,0.31411982]
[1735311832633,0.052445,95456.0,95434.0,0.31411982]
[1735311832634,0.352445,95456.0,95434.0,0.31411982]
[1735311832842,0.352445,95456.0,95426.0,0.0704]
[1735311833045,0.052447,95453.0,95426.0,0.0704]
[1735311833246,0.06326762,95456.0,95428.0,0.05246]
[1735311833440,0.01082262,95456.0,95426.0,0.0814]
[1735311833642,0.3,95456.0,95435.0,0.31411982]
[1735311833846,0.352445,95456.0,95426.0,0.0814]
[1735311834041,0.01057973,95458.0,95426.0,0.130862]
[1735311834348,0.002,95453.0,95426.0,0.0784]
[1735311834556,0.002,95453.0,95426.0,0.0774]
[1735311835043,0.10477567,95452.0,95426.0,0.0774]
[1735311835246,0.15722367,95452.0,95426.0,0.0774]
[1735311835446,0.052448,95451.0,95426.0,0.0774]
[1735311835651,0.052448,95451.0,95426.0,0.0804]
[1735311835846,0.352448,95451.0,95426.0,0.0804]
[1735311836044,0.36447076,95459.0,95426.0,0.0734]
[1735311836240,0.36447076,95459.0,95426.0,0.0804]
[1735311836241,0.001,95458.0,95426.0,0.0804]
[1735311836438,0.003,95451.0,95426.0,0.0774]
[1735311836840,0.303,95451.0,95426.0,0.0774]
[1735311837036,0.307,95451.0,95426.0,0.38451982]
[1735311837242,0.304,95451.0,95426.0,0.38451982]
[1735311837438,0.304,95451.0,95426.0,0.0724]
[1735311837747,0.11712301,95450.0,95426.0,0.0724]
[1735311837953,0.05246,95429.0,95427.0,0.31411982]
[1735311838147,0.052461,95427.0,95426.0,0.0724]
[1735311838353,0.052461,95427.0,95426.0,1e-06]
[1735311838557,0.352461,95427.0,95426.0,1e-06]
[1735311838849,0.052461,95427.0,95426.0,1e-06]
[1735311839052,0.352461,95427.0,95426.0,1e-06]
[1735311839448,0.005,95429.0,95401.0,0.00157247]
[1735311839654,0.05247,95411.0,95410.0,0.31411982]
[1735311839858,0.005,95427.0,95405.0,0.31411982]
[1735311840049,0.052473,95406.0,95405.0,0.31411982]
[1735311840244,0.008,95427.0,95420.0,0.31411982]
[1735311840650,0.052464,95421.0,95420.0,0.31411982]
[1735311840954,0.052474,95403.0,95401.0,0.00157247]
[1735311841352,0.052474,95403.0,95400.0,0.1]
[1735311841353,0.052466,95419.0,95400.0,0.1]
[1735311841551,0.052466,95419.0,95400.0,0.077]
[1735311841552,0.052475,95401.0,95400.0,0.077]
[1735311842957,0.052491,95374.0,95360.0,0.052498]
[1735311843152,0.052491,95374.0,95361.0,0.0766]
[1735311843345,0.052491,95374.0,95373.0,0.31411982]
[1735311843553,0.01843786,95401.0,95373.0,0.31411982]
[1735311843863,0.052481,95390.0,95389.0,0.31411982]
[1735311844859,0.052485,95384.0,95361.0,0.0766]
[1735311845160,0.052485,95384.0,95366.0,0.052494]
[1735311845351,0.052485,95384.0,95383.0,0.31411982]
[1735311846254,0.004,95390.0,95383.0,0.31411982]
[1735311846462,0.004,95390.0,95361.0,0.0766]
[1735311846463,0.35256,95414.0,95389.0,0.31511982]
[1735311846763,0.052472,95407.0,95390.0,0.073]
[1735311847265,0.052472,95407.0,95406.0,0.31411982]
[1735311847754,0.35392,95414.0,95406.0,0.31411982]
[1735311848064,0.01069931,95442.0,95421.0,0.052464]
[1735311848365,0.052463,95424.0,95422.0,0.073]
[1735311848559,0.052449,95449.0,95417.0,0.31411982]
[1735311848868,0.052476,95400.0,95398.0,0.03241439]
[1735311849075,0.052483,95388.0,95387.0,0.18606211]
[1735311849579,0.3526,95413.0,95387.0,0.50018193]
[1735311849764,0.3526,95413.0,95402.0,0.31411982]
[1735311849968,0.052472,95407.0,95406.0,0.003]
[1735311850167,0.01221147,95413.0,95412.0,0.31411982]
[1735311850368,0.12329468,95447.0,95412.0,0.31411982]
[1735311850572,0.052472,95408.0,95406.0,0.003]
[1735311850771,0.052472,95408.0,95391.0,0.052481]
[1735311850972,0.052472,95408.0,95407.0,0.31411982]
[1735311851172,0.13386487,95447.0,95407.0,0.31411982]
[1735311851370,0.052461,95428.0,95408.0,0.0719]
[1735311851575,0.052461,95428.0,95412.0,0.001]
[1735311851773,0.003,95436.0,95427.0,0.31411982]
[1735311852075,0.003,95436.0,95412.0,0.001]
[1735311852076,0.003,95436.0,95435.0,0.31411982]
[1735311852375,0.052456,95436.0,95435.0,0.31411982]
[1735311852877,0.052462,95425.0,95413.0,0.0714]
[1735311853072,0.00209538,95448.0,95424.0,0.31411982]
[1735311853269,0.00209538,95448.0,95443.0,0.31411982]
[1735311853471,0.052452,95444.0,95443.0,0.31411982]
[1735311853783,0.052452,95444.0,95413.0,0.372]
[1735311853784,0.052464,95423.0,95413.0,0.0006]
[1735311853973,0.05245,95447.0,95442.0,0.31411982]
[1735311854175,0.052452,95443.0,95442.0,0.31411982]
[1735311854377,0.00409538,95448.0,95443.0,0.31411982]
[1735311854577,0.00409538,95448.0,95428.0,0.31411982]
[1735311854781,0.00409538,95448.0,95431.0,0.31411982]
[1735311855080,0.052458,95432.0,95431.0,0.31411982]
[1735311855579,0.004,95447.0,95409.0,0.0735]
[1735311855779,0.05247,95410.0,95409.0,0.0735]
[1735311856082,0.1047872,95444.0,95437.0,0.31411982]
[1735311856281,0.004,95447.0,95437.0,0.31411982]
[1735311856578,0.00209538,95448.0,95396.0,0.18703484]
[1735311856579,0.052455,95438.0,95400.0,0.052476]
[1735311856785,0.052459,95430.0,95429.0,0.31411982]
[1735311858268,0.053459,95430.0,95429.0,0.31411982]
[1735311858983,0.06924458,95430.0,95429.0,0.001]
[1735311859569,0.06924458,95430.0,95429.0,0.31511982]
[1735311860074,0.06924458,95430.0,95429.0,0.001]
[1735311860270,0.06924458,95430.0,95429.0,0.31511982]
[1735311861576,0.06924458,95430.0,95429.0,0.001]
[1735311862179,0.06924458,95430.0,95429.0,0.31511982]
[1735311866778,0.058459,95430.0,95429.0,0.31511982]
[1735311866973,0.1534208,95440.0,95429.0,0.31511982]
[1735311867175,0.0368208,95440.0,95439.0,0.31411982]
[1735311867373,0.00209538,95448.0,95443.0,0.31411982]
[1735311867567,0.00209538,95448.0,95447.0,0.31411982]
[1735311868282,0.098,95490.0,95447.0,0.31411982]
[1735311868283,0.18335277,95451.0,95447.0,0.31411982]
[1735311868481,0.052444,95459.0,95450.0,0.31411982]
[1735311868680,0.2245456,95465.0,95463.0,0.31411982]
[1735311868883,0.052441,95464.0,95463.0,0.31411982]
[1735311869985,0.054441,95464.0,95463.0,0.31411982]
[1735311870170,0.05245,95448.0,95432.0,0.052458]
[1735311870485,0.002,95464.0,95458.0,0.31411982]
[1735311870681,0.052458,95432.0,95431.0,0.0727]
[1735311870891,0.052458,95432.0,95430.0,0.07466]
[1735311870892,0.052458,95432.0,95430.0,0.0741]
[1735311871071,0.052458,95432.0,95431.0,0.19050982]
[1735311873393,0.0706,95463.0,95431.0,0.19050982]
[1735311873592,0.0706,95463.0,95458.0,0.19050982]
[1735311873779,0.0103807,95463.0,95462.0,0.19050982]
[1735311874089,0.052441,95463.0,95462.0,0.19050982]
[1735311874285,0.35388,95467.0,95431.0,0.004]
[1735311874492,0.052446,95454.0,95431.0,0.304]
[1735311874883,0.052446,95454.0,95453.0,0.19050982]
[1735311876386,0.052442,95462.0,95453.0,0.19050982]
[1735311876587,0.00140001,95467.0,95454.0,0.0714]
[1735311876786,0.052446,95456.0,95454.0,0.0714]
[1735311876991,0.052448,95452.0,95442.0,0.0768]
[1735311877178,0.00140001,95467.0,95457.0,0.19050982]
[1735311877492,0.01084821,95469.0,95443.0,0.0714]
[1735311877493,0.052449,95450.0,95443.0,0.0714]